bitfinex/quotes_SOLUSD_20241214
["timestamp","ask_amount","ask_price","bid_price","bid_amount"]
[1734139785931,20.0,226.79,226.69,14.56883902]
[1734139786132,20.0,226.79,226.7,8.21043902]
[1734139787243,20.0,226.79,226.71,1.5825]
[1734139787434,20.0,226.79,226.71,9.79293902]
[1734139788036,20.0,226.79,226.71,1.5825]
[1734139789755,21.71932557,226.79,226.71,1.5825]
[1734139790055,0.12549,226.78,226.71,1.5825]
[1734139790258,20.0,226.75,226.71,1.5825]
[1734139791443,0.12549,226.74,226.66,1.5825]
[1734139796541,0.25098,226.74,226.66,1.5825]
[1734139798442,0.12549,226.7,226.63,14.66553902]
[1734139800554,20.0,226.71,226.63,14.66553902]
[1734139800757,20.0,226.72,226.63,6.4551]
[1734139800954,20.0,226.72,226.64,8.21043902]
[1734139801342,20.0,226.75,226.68,8.21043902]
[1734139801540,6.6139,226.8,226.69,8.21043902]
[1734139801759,6.5847,226.83,226.72,8.21043902]
[1734139802260,0.12549,226.82,226.72,8.21043902]
[1734139802762,17.632244,226.87,226.74,8.21043902]
[1734139803073,2.58915904,226.84,226.76,8.21043902]
[1734139803663,17.632244,226.87,226.77,8.87174769]
[1734139803866,17.632244,226.87,226.77,8.21043902]
[1734139804040,19.36866998,226.87,226.77,8.21043902]
[1734139804452,0.12549,226.85,226.74,1.5048]
[1734139804655,20.0,226.84,226.75,8.21043902]
[1734139805265,0.25098,226.83,226.75,8.21043902]
[1734139805460,0.25098,226.83,226.74,1.5048]
[1734139806556,0.25098,226.83,226.74,2.16618837]
[1734139808054,0.25098,226.83,226.74,10.37662739]
[1734139808652,20.0,226.79,226.71,6.2075]
[1734139808848,20.0,226.79,226.69,9.80393902]
[1734139809867,0.25098,226.78,226.69,10.46545257]
[1734139810167,20.0,226.79,226.71,8.21043902]
[1734139810471,20.0,226.79,226.71,8.87188974]
[1734139810654,20.0,226.79,226.72,8.21043902]
[1734139812168,21.77948711,226.79,226.72,8.21043902]
[1734139812579,21.77948711,226.79,226.71,8.21043902]
[1734139813071,21.77948711,226.79,226.73,8.21043902]
[1734139813382,20.0,226.8,226.74,0.66142237]
[1734139813702,2.65297575,226.86,226.75,8.21043902]
[1734139813703,20.0,226.84,226.75,8.21043902]
[1734139813972,2.65297575,226.86,226.76,8.21043902]
[1734139814375,0.12549,226.85,226.75,8.21043902]
[1734139814670,0.12549,226.85,226.74,0.66142237]
[1734139814852,0.12549,226.85,226.75,8.21043902]
[1734139815051,0.12549,226.85,226.74,8.87186139]
[1734139815281,20.0,226.84,226.74,8.87186139]
[1734139816257,0.25098,226.83,226.72,0.66134904]
[1734139816460,0.25098,226.83,226.73,8.21043902]
[1734139816858,0.12549,226.83,226.74,8.87181702]
[1734139818697,0.25098,226.83,226.74,0.661378]
[1734139819155,24.027864,226.83,226.7,0.66138835]
[1734139819360,0.25098,226.79,226.7,0.66138835]
[1734139820082,0.25098,226.79,226.7,8.87182737]
[1734139820279,20.25098,226.79,226.7,0.66138835]
[1734139820493,20.25098,226.79,226.69,9.80393902]
[1734139821477,20.25098,226.79,226.69,1.5935]
[1734139825068,20.25098,226.79,226.69,9.80393902]
[1734139825679,21.97113506,226.79,226.69,9.80393902]
[1734139826693,21.72015506,226.79,226.71,8.21043902]
[1734139827074,21.72015506,226.79,226.72,0.66143312]
[1734139827498,21.72015506,226.79,226.72,8.87187214]
[1734139827674,20.0,226.79,226.72,8.87187214]
[1734139828072,20.0,226.79,226.73,8.21043902]
[1734139828375,0.12549,226.82,226.74,8.87184758]
[1734139828782,9.26517575,226.86,226.76,8.21043902]
[1734139829183,9.26517575,226.86,226.75,8.21043902]
[1734139829378,9.26517575,226.86,226.75,8.87175433]
[1734139829594,0.12549,226.85,226.75,8.87175433]
[1734139830104,20.0,226.83,226.75,0.66131531]
[1734139830517,0.12549,226.82,226.73,8.21043902]
[1734139830805,0.25098,226.82,226.73,8.21043902]
[1734139831396,0.25098,226.82,226.72,8.87187176]
[1734139835396,0.25098,226.82,226.72,8.21043902]
[1734139835989,0.25098,226.82,226.71,8.21043902]
[1734139836597,0.25098,226.82,226.72,8.87188969]
[1734139836905,0.25098,226.82,226.73,8.21043902]
[1734139837308,0.25098,226.82,226.75,8.21043902]
[1734139838095,0.25098,226.82,226.74,8.87184728]
[1734139839703,0.12549,226.78,226.69,1.5935]
[1734139839906,0.25098,226.76,226.68,0.66138646]
[1734139840208,0.25098,226.76,226.64,0.661563]
[1734139840506,24.027864,226.76,226.64,8.87200202]
[1734139840706,0.25098,226.72,226.64,8.21043902]
[1734139841709,20.0,226.69,226.6,5.45145008]
[1734139842006,0.12549,226.68,226.6,8.21043902]
[1734139842687,0.25098,226.68,226.6,8.21043902]
[1734139843013,0.25098,226.68,226.59,8.87212423]
[1734139843194,0.25098,226.68,226.56,0.66183049]
[1734139843398,0.25098,226.66,226.57,8.21043902]
[1734139843902,0.25098,226.66,226.56,8.87226951]
[1734139844302,0.25098,226.66,226.48,1.5093]
[1734139844303,24.027864,226.62,226.48,1.5093]
[1734139844604,0.25098,226.58,226.48,9.71973902]
[1734139845124,0.25098,226.58,226.49,8.21043902]
[1734139845409,0.25098,226.58,226.48,14.36370583]
[1734139845621,0.25098,226.58,226.5,12.85440583]
[1734139845793,0.25098,226.58,226.49,12.85440583]
[1734139845990,0.25098,226.58,226.48,1.5093]
[1734139846907,0.25098,226.58,226.48,14.36370583]
[1734139847207,0.25098,226.56,226.44,12.85440583]
[1734139847391,0.25098,226.56,226.43,0.66216449]
[1734139847392,0.25098,226.52,226.43,0.66216449]
[1734139847591,0.25098,226.52,226.43,13.51657032]
[1734139847793,0.25098,226.52,226.45,12.85440583]
[1734139848205,20.0,226.59,226.46,13.5166191]
[1734139848408,0.12549,226.58,226.47,12.85440583]
[1734139848807,0.12549,226.54,226.46,12.85440583]
[1734139848989,0.25098,226.54,226.46,12.85440583]
[1734139849186,0.25098,226.54,226.45,12.85440583]
[1734139850100,0.25098,226.54,226.46,12.85440583]
[1734139850613,0.12549,226.55,226.46,12.85440583]
[1734139851107,0.25098,226.55,226.46,12.85440583]
[1734139851309,0.25098,226.55,226.45,12.85440583]
[1734139851490,24.027864,226.55,226.44,12.85440583]
[1734139851803,24.027864,226.55,226.42,14.36220583]
[1734139851804,0.25098,226.51,226.42,14.36220583]
[1734139852000,0.25098,226.51,226.42,12.85440583]
[1734139852388,0.12549,226.47,226.37,0.66235789]
[1734139852610,0.12549,226.47,226.38,12.85440583]
[1734139852814,0.12549,226.47,226.37,13.51676372]
[1734139852996,0.12549,226.45,226.36,12.85440583]
[1734139853307,0.25098,226.45,226.36,12.85440583]
[1734139853912,0.25098,226.45,226.37,12.85440583]
[1734139854211,0.25098,226.45,226.38,12.85440583]
[1734139854527,0.25098,226.45,226.37,12.85440583]
[1734139854890,0.25098,226.45,226.36,12.85440583]
[1734139855615,0.25098,226.41,226.32,12.85440583]
[1734139855820,0.25098,226.41,226.31,12.85440583]
[1734139856616,0.25098,226.37,226.27,0.66265989]
[1734139856834,0.25098,226.37,226.29,12.85440583]
[1734139857007,0.25098,226.37,226.32,12.85440583]
[1734139857402,0.25098,226.37,226.27,0.66265989]
[1734139857403,0.25098,226.37,226.31,12.85440583]
[1734139858125,0.25098,226.37,226.3,12.85440583]
[1734139858923,0.25098,226.37,226.31,12.85440583]
[1734139859120,20.0,226.38,226.33,12.85440583]
[1734139859306,0.12549,226.4,226.36,12.85440583]
[1734139859500,0.12549,226.42,226.34,12.85440583]
[1734139859939,0.25098,226.42,226.35,12.85440583]
[1734139860144,0.25098,226.42,226.36,12.85440583]
[1734139860635,0.25098,226.42,226.33,12.85440583]
[1734139860825,0.25098,226.42,226.35,12.85440583]
[1734139861213,0.25098,226.42,226.34,12.85440583]
[1734139861523,0.25098,226.42,226.32,12.85440583]
[1734139861721,0.25098,226.4,226.29,13.51697708]
[1734139861938,0.25098,226.4,226.3,12.85440583]
[1734139862141,0.25098,226.4,226.31,12.85440583]
[1734139862438,0.25098,226.4,226.32,12.85440583]
[1734139862615,24.027864,226.4,226.29,12.85440583]
[1734139862820,0.25098,226.36,226.27,12.85440583]
[1734139863253,0.25098,226.36,226.24,1.19320972]
[1734139863405,24.027864,226.36,226.24,1.19320972]
[1734139863606,24.027864,226.36,226.25,12.85440583]
[1734139864504,0.25098,226.36,226.27,12.85440583]
[1734139864709,0.12549,226.36,226.27,12.85440583]
[1734139865129,0.12549,226.36,226.26,13.51723521]
[1734139865428,0.12549,226.34,226.24,13.38481483]
[1734139865650,0.12549,226.34,226.26,12.85440583]
[1734139865815,23.776884,226.39,226.27,13.51717775]
[1734139866135,0.12549,226.38,226.26,12.85440583]
[1734139866319,0.12549,226.38,226.25,32.85440583]
[1734139866521,0.12549,226.38,226.25,20.0]
[1734139867041,0.25098,226.38,226.25,12.85440583]
[1734139867534,0.25098,226.38,226.24,34.04764851]
[1734139867839,0.25098,226.38,226.24,20.530409]
[1734139868414,0.25098,226.38,226.26,12.85440583]
[1734139868644,23.776884,226.39,226.27,12.85440583]
[1734139868851,23.776884,226.39,226.26,12.85440583]
[1734139869019,23.776884,226.39,226.25,0.66290294]
[1734139869020,0.12549,226.38,226.27,12.85440583]
[1734139869338,0.12549,226.36,226.24,0.530409]
[1734139869910,0.12549,226.33,226.24,0.530409]
[1734139870115,24.027864,226.33,226.24,0.530409]
[1734139870345,24.027864,226.31,226.24,0.530409]
[1734139871027,24.027864,226.27,226.24,0.530409]
[1734139871233,24.027864,226.27,226.12,2.17665454]
[1734139871234,24.027864,226.27,226.13,12.85440583]
[1734139871425,24.027864,226.27,226.15,12.85440583]
[1734139871625,24.027864,226.27,226.13,12.85440583]
[1734139871826,0.25098,226.27,226.14,0.66305635]
[1734139872145,20.0,226.28,226.14,0.66305635]
[1734139872146,44.027864,226.28,226.14,0.66305635]
[1734139872442,44.027864,226.28,226.15,20.0]
[1734139872941,44.027864,226.28,226.14,20.66305635]
[1734139873624,44.027864,226.28,226.15,20.0]
[1734139874840,44.027864,226.28,226.14,20.0]
[1734139875026,0.12549,226.18,226.04,30.0]
[1734139875224,24.027864,226.18,226.02,12.85440583]
[1734139875636,24.027864,226.18,226.01,44.04817987]
[1734139875946,24.027864,226.18,226.01,1.19377404]
[1734139876142,24.027864,226.16,226.01,14.04817987]
[1734139876864,24.027864,226.16,226.02,12.85440583]
[1734139877147,0.25098,226.16,226.03,0.66341475]
[1734139877343,24.027864,226.16,226.01,14.04822958]
[1734139878035,24.027864,226.16,226.02,20.0]
[1734139878347,24.027864,226.12,226.01,0.530409]
[1734139879136,0.25098,226.12,226.02,12.85440583]
[1734139879343,6.4038,226.13,226.05,20.0]
[1734139879540,2.64061754,226.14,226.03,20.66349492]
[1734139879734,0.12549,226.13,226.03,20.0]
[1734139879940,0.12549,226.13,226.01,0.530409]
[1734139880137,0.12549,226.13,226.01,13.38481483]
[1734139880335,0.12549,226.13,226.01,0.530409]
[1734139880737,24.027864,226.13,226.01,0.530409]
[1734139881245,30.661164,226.13,226.01,0.530409]
[1734139881443,24.027864,226.09,226.01,0.530409]
[1734139882042,0.25098,226.09,226.01,0.530409]
[1734139882236,23.776884,226.13,226.01,0.530409]
[1734139882436,2.64061754,226.14,226.01,0.530409]
[1734139882437,22.64061754,226.14,226.02,0.66351313]
[1734139882837,22.64061754,226.14,226.01,0.530409]
[1734139883144,0.12549,226.13,226.01,0.530409]
[1734139884165,0.12549,226.12,226.01,0.530409]
[1734139884567,2.64061754,226.14,226.02,0.66352281]
[1734139884745,2.64061754,226.14,226.05,20.0]
[1734139884949,0.5502,226.17,226.05,20.0]
[1734139885244,0.12549,226.16,226.05,20.0]
[1734139885446,0.12549,226.16,226.04,13.51779857]
[1734139886033,6.4038,226.18,226.04,13.51779857]
[1734139886034,6.4038,226.18,226.07,32.85440583]
[1734139886238,9.11203729,226.18,226.08,13.51768403]
[1734139886727,9.11203729,226.18,226.08,0.6632782]
[1734139886728,0.12549,226.17,226.08,0.6632782]
[1734139886933,0.12549,226.17,226.08,20.0]
[1734139887849,0.25098,226.17,226.07,20.0]
[1734139888235,24.027864,226.17,226.04,2.17692476]
[1734139888461,24.027864,226.17,226.06,20.0]
[1734139889745,0.12549,226.17,226.07,32.85440583]
[1734139889939,0.12549,226.17,226.1,12.85440583]
[1734139890146,0.12549,226.17,226.11,12.85440583]
[1734139891146,6.5997,226.23,226.11,12.85440583]
[1734139891747,2.71111689,226.22,226.13,12.85440583]
[1734139892146,2.71111689,226.22,226.12,13.51756767]
[1734139892355,2.71111689,226.22,226.12,12.85440583]
[1734139892762,0.12549,226.21,226.12,12.85440583]
[1734139893360,24.027864,226.21,226.08,20.6631857]
[1734139893661,24.027864,226.21,226.05,12.85440583]
[1734139893863,24.027864,226.21,226.05,13.51775176]
[1734139894157,24.027864,226.21,226.06,12.85440583]
[1734139895347,24.027864,226.19,226.08,20.0]
[1734139895954,24.027864,226.19,226.07,20.0]
[1734139896308,24.027864,226.19,226.07,33.51781042]
[1734139896573,24.027864,226.19,226.07,20.66340459]
[1734139897349,24.027864,226.19,226.07,20.0]
[1734139898078,24.027864,226.19,226.06,12.85440583]
[1734139898367,24.027864,226.19,226.02,15.1869]
[1734139898368,24.027864,226.17,226.05,20.0]
[1734139898557,0.12549,226.15,226.02,12.85440583]
[1734139898760,24.027864,226.15,226.02,12.85440583]
[1734139900471,30.660664,226.15,226.03,20.0]
[1734139900974,24.027864,226.13,226.01,0.530409]
[1734139904265,24.027864,226.13,226.02,20.0]
[1734139905054,24.027864,226.13,226.01,0.530409]
[1734139905252,24.027864,226.11,226.01,0.530409]
[1734139906177,0.12549,226.12,226.01,13.38481483]
[1734139906469,20.0,226.12,226.01,13.38481483]
[1734139906684,0.25098,226.11,226.01,13.38481483]
[1734139908782,0.5502,226.14,226.05,12.85440583]
[1734139909077,0.5502,226.14,226.07,12.85440583]
[1734139909271,0.12549,226.13,226.07,12.85440583]
[1734139909661,6.0495,226.16,226.08,12.85440583]
[1734139910080,0.12549,226.15,226.08,12.85440583]
[1734139910255,0.12549,226.15,226.07,12.85440583]
[1734139910978,0.25098,226.15,226.07,12.85440583]
[1734139911279,0.25098,226.15,226.05,32.85440583]
[1734139911656,2.91136811,226.15,226.05,32.85440583]
[1734139912276,2.91136811,226.15,226.06,12.85440583]
[1734139912968,2.91136811,226.15,226.05,32.85440583]
[1734139913172,2.91136811,226.15,226.06,12.85440583]
[1734139913378,2.91136811,226.15,226.05,32.85440583]
[1734139913776,2.91136811,226.15,226.06,12.85440583]
[1734139914292,2.91136811,226.15,226.05,20.0]
[1734139915778,2.91136811,226.15,226.03,13.51775506]
[1734139916288,2.91136811,226.15,226.04,12.85440583]
[1734139916890,2.91136811,226.15,226.02,14.51350583]
[1734139917072,2.91136811,226.15,226.03,32.85440583]
[1734139917269,2.91136811,226.15,226.03,20.0]
[1734139917463,2.91136811,226.15,226.01,14.04821733]
[1734139918266,2.91136811,226.15,226.02,12.85440583]
[1734139918595,2.91136811,226.15,226.03,12.85440583]
[1734139919771,2.91136811,226.15,226.04,12.85440583]
[1734139920086,2.66038811,226.15,226.05,20.0]
[1734139920276,2.66038811,226.15,226.06,12.85440583]
[1734139920465,0.12549,226.14,226.05,32.85440583]
[1734139921182,0.25098,226.14,226.05,32.85440583]
[1734139922199,6.0495,226.16,226.1,12.85440583]
[1734139922360,6.0495,226.16,226.09,12.85440583]
[1734139922560,0.12549,226.15,226.08,12.85440583]
[1734139923267,0.25098,226.15,226.08,12.85440583]
[1734139924094,0.25098,226.15,226.09,0.66326499]
[1734139924398,0.12549,226.15,226.1,12.85440583]
[1734139924688,0.12549,226.17,226.09,13.51767082]
[1734139925066,0.12549,226.17,226.09,0.66326499]
[1734139925973,0.12549,226.17,226.12,12.85440583]
[1734139926173,0.12549,226.17,226.13,12.85440583]
[1734139926889,8.93966779,226.25,226.15,12.85440583]
[1734139926890,0.5502,226.25,226.15,12.85440583]
[1734139927386,0.12549,226.24,226.15,12.85440583]
[1734139927601,0.5502,226.25,226.15,12.85440583]
[1734139927769,0.5502,226.25,226.17,12.85440583]
[1734139927971,6.7567,226.31,226.2,12.85440583]
[1734139928381,0.12549,226.3,226.19,12.85440583]
[1734139928575,6.7567,226.31,226.2,12.85440583]
[1734139929571,0.12549,226.29,226.2,12.85440583]
[1734139930676,0.25098,226.29,226.2,12.85440583]
[1734139931987,0.12549,226.3,226.22,12.85440583]
[1734139932283,0.12549,226.3,226.21,0.66290196]
[1734139932284,0.12549,226.3,226.23,13.51726657]
[1734139932729,13.5134,226.36,226.23,13.51726657]
[1734139932878,6.7567,226.36,226.24,12.85440583]
[1734139933079,2.60933755,226.35,226.24,12.85440583]
[1734139933293,2.60933755,226.35,226.25,32.85440583]
[1734139933710,6.7567,226.36,226.26,13.51714789]
[1734139933990,6.2065,226.36,226.28,12.85440583]
[1734139934389,0.12549,226.35,226.26,13.51714789]
[1734139934776,9.45012432,226.41,226.3,12.85440583]
[1734139935011,6.7567,226.41,226.3,12.85440583]
[1734139935368,6.7567,226.41,226.3,13.51700048]
[1734139935572,0.12549,226.4,226.3,13.51700048]
[1734139936278,0.25098,226.4,226.3,13.51700048]
[1734139937693,0.25098,226.4,226.32,20.0]
[1734139938092,0.25098,226.4,226.31,20.0]
[1734139938675,0.25098,226.4,226.3,0.66259465]
[1734139939378,0.12549,226.36,226.25,1.5416]
[1734139939974,0.12549,226.36,226.24,13.51705001]
[1734139940696,0.12549,226.39,226.24,13.51705001]
[1734139942183,0.12549,226.39,226.25,32.85440583]
[1734139942383,0.12549,226.39,226.25,20.66277996]
[1734139942904,0.12549,226.36,226.25,20.66277996]
[1734139943084,0.12549,226.36,226.25,33.51718579]
[1734139943797,0.12549,226.36,226.25,20.66277996]
[1734139944525,6.7567,226.41,226.28,12.85440583]
[1734139944711,6.7567,226.41,226.27,20.0]
[1734139944712,6.7567,226.41,226.33,12.85440583]
[1734139946104,0.12549,226.4,226.33,12.85440583]
[1734139946286,0.12549,226.4,226.3,12.85440583]
[1734139946483,0.25098,226.4,226.29,33.51706481]
[1734139947103,0.25098,226.4,226.35,12.85440583]
[1734139947287,0.25098,226.4,226.29,50.66265898]
[1734139947288,0.12549,226.42,226.36,12.85440583]
[1734139947491,0.12549,226.45,226.37,12.85440583]
[1734139948011,6.4843,226.46,226.38,13.5168924]
[1734139948380,0.12549,226.45,226.37,12.85440583]
[1734139948586,0.12549,226.45,226.36,12.85440583]
[1734139948888,0.5502,226.47,226.37,0.66244834]
[1734139949091,0.5502,226.47,226.38,20.0]
[1734139949285,0.12549,226.46,226.38,20.0]
[1734139950197,0.25098,226.46,226.38,20.0]
[1734139951336,0.25098,226.46,226.36,32.85440583]
[1734139951701,0.25098,226.46,226.36,33.51687382]
[1734139952601,0.25098,226.46,226.38,20.0]
[1734139953848,0.25098,226.46,226.38,13.51684442]
[1734139954137,6.4843,226.51,226.38,13.51684442]
[1734139954138,6.4843,226.51,226.42,12.85440583]
[1734139954319,6.4843,226.51,226.44,12.85440583]
[1734139954645,0.12549,226.5,226.43,13.51666112]
[1734139954939,0.12549,226.5,226.43,0.66225529]
[1734139955239,6.4843,226.51,226.43,0.66225529]
[1734139956017,6.4843,226.51,226.44,20.0]
[1734139956429,0.25098,226.5,226.44,20.0]
[1734139956632,0.25098,226.5,226.42,33.51672404]
[1734139957035,0.25098,226.5,226.43,12.85440583]
[1734139957232,0.25098,226.5,226.44,0.66222825]
[1734139957424,0.25098,226.5,226.42,32.85440583]
[1734139957742,0.25098,226.5,226.43,0.6622561]
[1734139959312,0.25098,226.5,226.43,13.51666193]
[1734139959516,0.25098,226.5,226.43,0.6622561]
[1734139960472,0.25098,226.5,226.44,20.0]
[1734139961147,0.25098,226.5,226.43,20.0]
[1734139961758,0.25098,226.5,226.38,3.57802]
[1734139961759,24.027864,226.5,226.38,3.57802]
[1734139963035,0.25098,226.5,226.43,12.85440583]
[1734139963242,0.25098,226.5,226.44,13.51667584]
[1734139963243,0.12549,226.5,226.44,13.51667584]
[1734139963431,0.12549,226.5,226.44,0.66227001]
[1734139963757,0.25098,226.5,226.42,0.66224943]
[1734139964053,0.25098,226.5,226.41,20.0]
[1734139964450,0.25098,226.5,226.4,20.0]
[1734139964659,0.25098,226.5,226.41,20.0]
[1734139966839,0.25098,226.5,226.39,32.85440583]
[1734139967031,0.25098,226.5,226.39,20.0]
[1734139968363,0.25098,226.5,226.4,12.85440583]
[1734139968673,0.25098,226.5,226.4,13.51680077]
[1734139968869,0.25098,226.5,226.41,12.85440583]
[1734139969165,0.25098,226.5,226.42,0.66229412]
[1734139970257,0.25098,226.5,226.42,13.51669995]
[1734139970477,0.12549,226.5,226.42,13.51669995]
[1734139970974,6.0865,226.56,226.46,12.85440583]
[1734139971569,0.12549,226.55,226.46,12.85440583]
[1734139971871,0.12549,226.55,226.45,12.85440583]
[1734139972074,0.12549,226.55,226.46,0.66216981]
[1734139972231,0.25098,226.55,226.46,0.66216981]
[1734139972550,0.25098,226.55,226.46,13.51657564]
[1734139972750,0.25098,226.55,226.46,0.66216981]
[1734139973271,0.25098,226.55,226.46,13.51657564]
[1734139974145,0.25098,226.55,226.46,0.66216981]
[1734139974464,6.0865,226.56,226.48,20.0]
[1734139974657,6.0865,226.56,226.48,0.6621009]
[1734139975041,0.12549,226.55,226.48,20.0]
[1734139975249,0.12549,226.55,226.46,13.51650639]
[1734139975439,6.0865,226.56,226.48,20.0]
[1734139975640,0.12549,226.55,226.48,0.66209778]
[1734139975939,0.25098,226.55,226.49,20.0]
[1734139976367,0.12549,226.55,226.48,20.0]
[1734139976664,6.0865,226.56,226.49,0.66207736]
[1734139976959,6.0865,226.56,226.48,20.0]
[1734139978250,0.25098,226.55,226.46,0.66210173]
[1734139978448,0.25098,226.55,226.47,20.0]
[1734139978653,24.027864,226.55,226.41,13.51663716]
[1734139979247,24.027864,226.55,226.43,12.85440583]
[1734139979448,0.25098,226.55,226.44,0.66228474]
[1734139980045,0.25098,226.55,226.44,13.51669057]
[1734139980555,0.25098,226.55,226.45,12.85440583]
[1734139980865,0.25098,226.55,226.45,13.5165782]
[1734139981174,0.25098,226.55,226.46,12.85440583]
[1734139981463,0.25098,226.55,226.45,20.66217237]
[1734139983675,6.0865,226.56,226.48,12.85440583]
[1734139983963,3.16898151,226.59,226.49,13.51646171]
[1734139984345,3.16898151,226.59,226.49,0.66205588]
[1734139984545,3.16898151,226.59,226.46,33.51647239]
[1734139984546,0.12549,226.58,226.46,33.51647239]
[1734139985247,0.25098,226.58,226.48,20.0]
[1734139985665,0.25098,226.58,226.49,20.0]
[1734139986062,0.25098,226.58,226.48,20.0]
[1734139986260,0.25098,226.58,226.48,20.66213294]
[1734139986455,0.25098,226.58,226.48,33.51653877]
[1734139987158,0.25098,226.58,226.48,20.66213294]
[1734139987471,0.25098,226.58,226.48,13.51653005]
[1734139987665,0.12549,226.56,226.45,3.576914]
[1734139988357,30.397084,226.58,226.45,3.576914]
[1734139988358,0.25098,226.57,226.45,3.576914]
[1734139989146,24.027864,226.55,226.45,3.576914]
[1734139990662,25.79991252,226.55,226.45,3.576914]
[1734139992550,30.396564,226.53,226.45,3.576914]
[1734139993559,0.25098,226.51,226.45,3.576914]
[1734139994277,30.650164,226.51,226.45,3.576914]
[1734140000675,24.027864,226.47,226.33,20.0]
[1734140000869,24.027864,226.47,226.31,8.89636708]
[1734140001407,24.027864,226.47,226.29,10.51683451]
[1734140001579,0.12549,226.43,226.29,10.51683451]
[1734140001777,24.027864,226.43,226.29,10.51683451]
[1734140002888,24.027864,226.43,226.31,20.0]
[1734140003962,25.74754206,226.43,226.31,20.0]
[1734140004158,24.578064,226.41,226.29,1.6204]
[1734140004667,24.578064,226.41,226.26,0.66266012]
[1734140004872,24.578064,226.41,226.23,10.51698483]
[1734140005794,24.578064,226.41,226.24,8.23382279]
[1734140006166,24.578064,226.41,226.27,20.0]
[1734140006778,24.578064,226.41,226.25,28.23382279]
[1734140007884,20.25098,226.37,226.24,8.23382279]
[1734140008267,0.25098,226.37,226.24,8.23382279]
[1734140008672,0.25098,226.38,226.24,8.23382279]
[1734140009670,0.25098,226.38,226.25,20.0]
[1734140009877,0.12549,226.36,226.25,20.0]
[1734140010079,24.027864,226.36,226.21,0.66285941]
[1734140010285,24.027864,226.34,226.19,8.89671972]
[1734140010893,24.027864,226.32,226.18,16.08678566]
[1734140011762,24.027864,226.32,226.18,1.5256]
[1734140012597,0.25098,226.32,226.19,20.0]
[1734140012811,6.5928,226.35,226.26,8.23382279]
[1734140013196,6.5928,226.35,226.24,8.23382279]
[1734140013402,0.12549,226.34,226.23,28.23382279]
[1734140013602,0.12549,226.34,226.25,20.0]
[1734140014107,2.77975875,226.34,226.25,20.0]
[1734140014292,0.12549,226.33,226.25,20.0]
[1734140015201,0.12549,226.33,226.24,20.0]
[1734140018018,0.12549,226.33,226.21,8.896604]
[1734140018190,20.5502,226.32,226.21,0.66278121]
[1734140018392,20.5502,226.32,226.12,12.49811959]
[1734140018393,0.12549,226.28,226.12,1.5256]
[1734140018811,0.12549,226.28,226.12,9.75942279]
[1734140020410,0.12549,226.28,226.12,1.5256]
[1734140020608,24.027864,226.26,226.12,1.5256]
[1734140020914,24.027864,226.26,226.13,20.0]
[1734140021091,24.027864,226.26,226.15,20.0]
[1734140021295,24.027864,226.26,226.13,20.0]
[1734140021495,0.25098,226.26,226.15,20.0]
[1734140022118,0.25098,226.26,226.14,20.0]
[1734140022616,0.25098,226.26,226.12,21.5256]
[1734140022807,0.25098,226.26,226.13,20.0]
[1734140023217,0.25098,226.26,226.12,21.5256]
[1734140023412,2.05280845,226.26,226.12,21.5256]
[1734140024516,2.05280845,226.26,226.15,20.0]
[1734140024718,6.5928,226.3,226.16,20.6630954]
[1734140025025,6.5928,226.3,226.16,33.55767973]
[1734140025222,8.39154281,226.3,226.16,20.6630954]
[1734140025725,8.39154281,226.3,226.16,33.55767973]
[1734140026096,0.12549,226.29,226.16,20.6630954]
[1734140026502,0.12549,226.29,226.17,20.0]
[1734140026720,30.531074,226.29,226.12,1.5256]
[1734140026922,30.531074,226.29,226.12,21.5256]
[1734140027098,0.12549,226.25,226.12,1.5256]
[1734140027303,0.25098,226.25,226.08,22.40388412]
[1734140027602,0.12549,226.23,226.08,22.40388412]
[1734140027815,0.25098,226.23,226.08,9.50929979]
[1734140028719,0.25098,226.23,226.11,20.0]
[1734140029020,0.25098,226.21,226.1,20.0]
[1734140031307,0.25098,226.19,226.1,20.0]
[1734140032820,0.25098,226.19,226.08,0.66319979]